fUSD/lending_fUSD_20250120
["ID","MTS","AMOUNT","RATE_DAILY","PERIOD"]
[349736603,1737402648668,-500.0,0.00019998,7]
[349736604,1737402648679,-537.76,0.00019998,2]
[349736605,1737402648690,-500.0,0.00019998,2]
[349736606,1737402648700,-793.14,0.00019998,2]
[349736607,1737402648710,-500.0,0.00019998,2]
[349736608,1737402648720,-500.0,0.00019998,2]
[349736609,1737402648730,-500.0,0.00019998,2]
[349736610,1737402648740,-537.52,0.00019998,2]
[349736611,1737402648750,-500.0,0.00019998,2]
[349736612,1737402648761,-500.0,0.00019998,2]
[349736613,1737402648771,-500.0,0.00019998,2]
[349736614,1737402648781,-510.07478074,0.00019998,2]
[349736615,1737402648791,-500.0,0.00019998,2]
[349736616,1737402648801,-500.0,0.00019998,2]
[349736617,1737402648813,-500.0,0.00019998,2]
[349736618,1737402648823,-500.0,0.00019998,2]
[349736619,1737402648832,-500.0,0.00019998,2]
[349736620,1737402648842,-500.0,0.00019998,2]
[349736621,1737402648852,-500.0,0.00019998,2]
[349736622,1737402648861,-500.0,0.00019998,2]
[349736623,1737402648871,-500.0,0.00019998,2]
[349736624,1737402648881,-500.0,0.00019998,2]
[349736625,1737402648896,-500.0,0.00019998,2]
[349736626,1737402648906,-500.0,0.00019998,2]
[349736627,1737402648916,-500.0,0.00019998,2]
[349736628,1737402648925,-500.0,0.00019998,2]
[349736629,1737402648935,-500.0,0.00019998,2]
[349736630,1737402648945,-500.0,0.00019998,2]
[349736631,1737402648955,-500.0,0.00019998,2]
[349736632,1737402648966,-500.0,0.00019998,2]
[349736633,1737402648977,-500.0,0.00019998,2]
[349736634,1737402648987,-515.62,0.00019998,2]
[349736635,1737402648997,-500.0,0.00019998,2]
[349736636,1737402649007,-941.19,0.00019998,2]
[349736637,1737402649017,-500.0,0.00019998,2]
[349736638,1737402649027,-850.02,0.00019998,2]
[349736639,1737402649036,-520.08,0.00019998,2]
[349736640,1737402649046,-500.0,0.00019998,2]
[349736641,1737402649056,-500.0,0.00019998,2]
[349736642,1737402649066,-556.78684939,0.00019998,2]
[349736643,1737402649075,-1010.73,0.00019998,2]
[349736644,1737402649085,-500.0,0.00019998,2]
[349736645,1737402649094,-500.0,0.00019998,2]
[349736646,1737402649104,-500.0,0.00019998,2]
[349736647,1737402649114,-500.0,0.00019998,2]
[349736648,1737402649123,-500.0,0.00019998,2]
[349736649,1737402649133,-500.0,0.00019998,2]
[349736650,1737402649148,-500.0,0.00019998,2]
[349736651,1737402649157,-500.0,0.00019998,2]
[349736652,1737402649167,-500.0,0.00019998,2]
[349736653,1737402649177,-500.0,0.00019998,2]
[349736654,1737402649187,-500.0,0.00019998,2]
[349736655,1737402649197,-501.71998408,0.00019998,2]
[349736656,1737402649206,-500.0,0.00019998,2]
[349736657,1737402649216,-500.0,0.00019998,2]
[349736658,1737402649226,-500.0,0.00019998,2]
[349736659,1737402649235,-503.65266573,0.00019998,2]
[349736660,1737402649245,-500.0,0.00019998,2]
[349736661,1737402649254,-500.0,0.00019998,2]
[349736662,1737402649264,-500.0,0.00019998,2]
[349736663,1737402649274,-500.0,0.00019998,2]
[349736664,1737402649283,-500.0,0.00019998,2]
[349736665,1737402649293,-500.0,0.00019998,2]
[349736666,1737402649305,-500.0,0.00019998,2]
[349736667,1737402649316,-500.0,0.00019998,2]
[349736668,1737402649325,-500.0,0.00019998,2]
[349736669,1737402649335,-500.0,0.00019998,2]
[349736670,1737402649345,-705.09,0.00019998,2]
[349736671,1737402649354,-500.0,0.00019998,2]
[349736672,1737402649364,-500.0,0.00019998,2]
[349736673,1737402649374,-500.0,0.00019998,2]
[349736674,1737402649384,-500.0,0.00019998,2]
[349736675,1737402649399,-556.67,0.00019998,2]
[349736676,1737402649413,-500.0,0.00019998,2]
[349736677,1737402649424,-500.0,0.00019998,2]
[349736678,1737402649435,-500.0,0.00019998,2]
[349736679,1737402649445,-500.0,0.00019998,2]
[349736680,1737402649456,-500.0,0.00019998,2]
[349736681,1737402649466,-500.0,0.00019998,2]
[349736682,1737402649476,-615.32,0.00019998,2]
[349736683,1737402649487,-500.0,0.00019998,2]
[349736684,1737402649497,-500.0,0.00019998,2]
[349736685,1737402649510,-500.0,0.00019998,2]
[349736686,1737402649521,-658.39,0.00019998,2]
[349736687,1737402649531,-500.0,0.00019998,2]
[349736688,1737402649545,-500.0,0.00019998,2]
[349736689,1737402649555,-500.0,0.00019998,2]
[349736690,1737402649565,-500.0,0.00019998,2]
[349736691,1737402649575,-500.0,0.00019998,2]
[349736692,1737402649586,-500.0,0.00019998,2]
[349736693,1737402649596,-500.0,0.00019998,2]
[349736694,1737402649606,-500.0,0.00019998,2]
[349736695,1737402649617,-500.0,0.00019998,2]
[349736696,1737402649627,-500.0,0.00019998,2]
[349736697,1737402649640,-500.0,0.00019998,2]
[349736698,1737402649650,-574.7938158,0.00019998,2]
[349736699,1737402649660,-500.0,0.00019998,2]
[349736700,1737402649671,-500.0,0.00019998,2]
[349736701,1737402649682,-500.0,0.00019998,2]
[349736702,1737402649693,-500.0,0.00019998,2]
[349736703,1737402649703,-500.0,0.00019998,2]
[349736704,1737402649713,-500.70823528,0.00019998,2]
[349736705,1737402649724,-500.0,0.00019998,2]
[349736706,1737402649735,-500.0,0.00019998,2]
[349736707,1737402649745,-500.0,0.00019998,2]
[349736708,1737402649756,-500.0,0.00019998,2]
[349736709,1737402649766,-500.0,0.00019998,2]
[349736710,1737402649776,-500.0,0.00019998,2]
[349736711,1737402649786,-500.0,0.00019998,2]
[349736712,1737402649796,-631.6,0.00019998,2]
[349736713,1737402649809,-500.0,0.00019998,2]
[349736714,1737402649819,-386.51829599,0.00019998,2]
[349736715,1737402649829,-500.0,0.00019998,2]
[349736716,1737402649840,-500.0,0.00019998,2]
[349736717,1737402649850,-500.0,0.00019998,2]
[349736718,1737402649860,-500.0,0.00019998,2]
[349736719,1737402649870,-500.0,0.00019998,2]
[349736720,1737402649880,-151.03874766,0.00019998,2]
[349736721,1737402649892,-500.0,0.00019998,2]
[349736722,1737402649902,-503.37592142,0.00019998,2]
[349736723,1737402649912,-500.0,0.00019998,2]
[349736724,1737402649921,-500.0,0.00019998,2]
[349736725,1737402649931,-500.0,0.00019998,2]
[349736726,1737402649941,-500.0,0.00019998,2]
[349736727,1737402649951,-500.0,0.00019998,2]
[349736728,1737402649961,-507.9925735,0.00019998,2]
[349736729,1737402649973,-500.0,0.00019998,2]
[349736730,1737402650111,-570.75,0.00019998,2]
[349736731,1737402650121,-500.0,0.00019998,2]
[349736732,1737402650131,-500.0,0.00019998,2]
[349736733,1737402650142,-500.0,0.00019998,2]
[349736734,1737402650152,-500.0,0.00019998,2]
[349736735,1737402650162,-500.0,0.00019998,2]
[349736736,1737402650172,-500.0,0.00019998,2]
[349736737,1737402650181,-500.0,0.00019998,2]
[349736738,1737402650192,-500.0,0.00019998,2]
[349736739,1737402650201,-500.0,0.00019998,2]
[349736740,1737402650211,-582.42,0.00019998,2]
[349736741,1737402650221,-500.0,0.00019998,2]
[349736742,1737402650230,-500.0,0.00019998,2]
[349736743,1737402650240,-500.0,0.00019998,2]
[349736744,1737402650250,-500.0,0.00019998,2]
[349736745,1737402650259,-500.0,0.00019998,2]
[349736746,1737402650269,-500.0,0.00019998,2]
[349736747,1737402650278,-500.0,0.00019998,2]
[349736748,1737402650287,-649.32,0.00019998,2]
[349736749,1737402650297,-500.0,0.00019998,2]
[349736750,1737402650307,-500.0,0.00019998,2]
[349736751,1737402650316,-500.0,0.00019998,2]
[349736752,1737402650326,-500.0,0.00019998,2]
[349736753,1737402650335,-500.0,0.00019998,2]
[349736754,1737402650345,-500.0,0.00019998,2]
[349736755,1737402650354,-500.0,0.00019998,2]
[349736756,1737402650363,-749.57,0.00019998,2]
[349736757,1737402650372,-500.0,0.00019998,2]
[349736758,1737402650382,-500.0,0.0002,2]
[349736759,1737402650392,-500.0,0.0002,2]
[349736760,1737402650402,-693.56,0.0002,2]
[349736761,1737402650413,-657.85,0.0002,2]
[349736762,1737402650422,-500.0,0.0002,2]
[349736763,1737402650432,-1377.16,0.0002,2]
[349736764,1737402650441,-500.0,0.0002,2]
[349736765,1737402650450,-500.0,0.0002,2]
[349736766,1737402650460,-500.0,0.0002,2]
[349736767,1737402650469,-500.0,0.0002,2]
[349736768,1737402650478,-514.64,0.0002,2]
[349736769,1737402650488,-500.0,0.0002,2]
[349736770,1737402650497,-500.0,0.0002,2]
[349736771,1737402650506,-500.0,0.0002,2]
[349736772,1737402650516,-500.0,0.0002,2]
[349736773,1737402650526,-500.0,0.0002,2]
[349736774,1737402650536,-500.0,0.0002,2]
[349736775,1737402650545,-500.0,0.0002,2]
[349736776,1737402650555,-500.0,0.0002,2]
[349736777,1737402650564,-709.92,0.0002,2]
[349736778,1737402650578,-648.26,0.0002,2]
[349736779,1737402650587,-571.54,0.0002,2]
[349736780,1737402650597,-500.0,0.0002,2]
[349736781,1737402650606,-500.0,0.0002,2]
[349736782,1737402650616,-510.61,0.0002,2]
[349736783,1737402650625,-500.0,0.0002,2]
[349736784,1737402650634,-704.92,0.0002,2]
[349736785,1737402650645,-500.0,0.0002,2]
[349736786,1737402650655,-500.0,0.0002,2]
[349736787,1737402650665,-500.0,0.0002,2]
[349736788,1737402650675,-500.0,0.0002,2]
[349736789,1737402650684,-500.0,0.0002,2]
[349736790,1737402650694,-500.0,0.0002,2]
[349736791,1737402650703,-967.1,0.0002,2]
[349736792,1737402650713,-500.0,0.0002,2]
[349736793,1737402650722,-500.0,0.0002,2]
[349736794,1737402650732,-1040.77,0.0002,2]
[349736795,1737402650742,-926.08,0.0002,2]
[349736796,1737402650751,-738.16,0.0002,2]
[349736797,1737402650760,-782.11,0.0002,2]
[349736798,1737402650769,-500.0,0.0002,2]
[349736799,1737402650778,-500.0,0.0002,2]
[349736800,1737402650789,-757.81,0.0002,2]
[349736801,1737402650798,-748.69,0.0002,2]
[349736802,1737402650808,-670.79,0.0002,2]
[349736803,1737402650820,-1131.49,0.0002,2]
[349736804,1737402650830,-571.14,0.0002,2]
[349736805,1737402650839,-530.83,0.0002,2]
[349736806,1737402650849,-1001.16,0.0002,2]
[349736807,1737402650860,-903.29,0.0002,2]
[349736808,1737402650871,-500.0,0.0002,2]
[349736809,1737402650880,-688.81,0.0002,2]
[349736810,1737402650892,-867.32,0.0002,2]
[349736811,1737402650902,-783.82,0.0002,2]
[349736812,1737402650912,-1397.83,0.0002,2]
[349736813,1737402650921,-500.0,0.0002,2]
[349736814,1737402650930,-1084.16,0.0002,2]
[349736815,1737402650939,-500.0,0.0002,2]
[349736816,1737402650948,-2324.14,0.0002,2]
[349736817,1737402650957,-2720.61,0.0002,2]
[349736818,1737402650971,-2896.78,0.0002,2]
[349736819,1737402650981,-4971.5,0.0002,2]
[349736820,1737402650993,-1129.36,0.0002,2]
[349736821,1737402651002,-711.14,0.0002,2]
[349736822,1737402651012,-855.3,0.0002,2]
[349736823,1737402651021,-1070.95,0.0002,2]
[349736824,1737402651030,-748.2,0.0002,2]
[349736825,1737402651040,-1713.39,0.0002,2]
[349736826,1737402651049,-5370.89,0.0002,2]
[349736827,1737402651059,-3890.34,0.0002,2]
[349736828,1737402651069,-863.32,0.0002,2]
[349736829,1737402651078,-1226.35,0.0002,2]
[349736830,1737402651087,-1111.21,0.0002,2]
[349736831,1737402651097,-1754.48,0.0002,2]
[349736832,1737402651106,-2786.79,0.0002,2]
[349736833,1737402651115,-500.0,0.0002,2]
[349736834,1737402651124,-1125.92,0.0002,2]
[349736835,1737402651134,-2395.51,0.0002,2]
[349736836,1737402651144,-500.0,0.0002,2]
[349736837,1737402651153,-910.76,0.0002,2]
[349736838,1737402651162,-500.0,0.0002,2]
[349736839,1737402651171,-1897.83,0.0002,2]
[349736840,1737402651181,-1391.07,0.0002,2]
[349736841,1737402651190,-4210.59,0.0002,2]
[349736842,1737402651200,-1110.48,0.0002,2]
[349736843,1737402651210,-649.64,0.0002,2]
[349736844,1737402651220,-2128.9,0.0002,2]
[349736845,1737402651229,-500.0,0.0002,2]
[349736846,1737402651238,-500.0,0.0002,2]
[349736847,1737402651247,-515.27,0.0002,2]
[349736848,1737402651256,-619.67,0.0002,2]
[349736849,1737402651267,-500.0,0.0002,2]
[349736850,1737402651277,-2130.06,0.0002,2]
[349736851,1737402651286,-500.0,0.0002,2]
[349736852,1737402651295,-1000.0,0.0002,2]
[349736853,1737402651304,-589.39,0.0002,2]
[349736854,1737402651313,-1164.23,0.0002,2]
[349736855,1737402651322,-1740.71,0.0002,2]
[349736856,1737402651331,-1099.37,0.0002,2]
[349736857,1737402651340,-1209.92,0.0002,2]
[349736858,1737402651351,-500.0,0.0002,2]
[349736859,1737402651360,-838.12,0.0002,2]
[349736860,1737402651369,-656.66,0.0002,2]
[349736861,1737402651378,-1931.69,0.0002,2]
[349736862,1737402651387,-617.57,0.0002,2]
[349736863,1737402651398,-728.46,0.0002,2]
[349736864,1737402651407,-2704.82,0.0002,2]
[349736865,1737402651416,-500.0,0.0002,2]
[349736866,1737402651425,-354.86,0.0002,2]
[349736867,1737402651435,-500.0,0.0002,2]
[349736868,1737402651444,-500.0,0.0002,2]
[349736869,1737402651453,-2566.58,0.0002,2]
[349736870,1737402651462,-1375.78,0.0002,2]
[349736871,1737402651471,-500.0,0.0002,2]
[349736872,1737402651481,-541.9,0.0002,2]
[349736873,1737402651491,-616.51,0.0002,2]
[349736874,1737402651500,-206.78671214,0.00020011,2]
[349736875,1737402651509,-1259.42,0.00020041,7]
[349736876,1737402651519,-1259.42,0.00020041,7]
[349736877,1737402651528,-150.0,0.00020043,2]
[349736878,1737402651537,-3000.0,0.0002007,2]
[349736879,1737402651546,-500.0,0.00020071,2]
[349736880,1737402651556,-500.0,0.00020071,2]
[349736881,1737402651566,-500.0,0.00020071,2]
[349736882,1737402651575,-500.0,0.00020071,2]
[349736883,1737402651585,-167.3076911,0.00020071,2]
[349736884,1737402651594,-500.0,0.00020071,2]
[349736885,1737402651603,-500.0,0.00020071,2]
[349736886,1737402651613,-500.0,0.00020071,2]
[349736887,1737402651622,-500.0,0.00020071,2]
[349736888,1737402651631,-322.50070724,0.00020071,2]
[349736889,1737402651641,-211.2946142,0.00020071,2]
[349736890,1737402651650,-1077.88,0.00020071,2]
[349736891,1737402651660,-500.0,0.00020071,2]
[349736892,1737402651670,-500.0,0.00020071,2]
[349736893,1737402651679,-2286.06,0.00020071,2]
[349736894,1737402651689,-756.99,0.00020071,2]
[349736895,1737402651698,-853.385106,0.00020071,2]
[349736896,1737402651707,-500.0,0.00020071,2]
[349736897,1737402651716,-500.0,0.00020071,2]
[349736898,1737402651725,-500.0,0.00020071,2]
[349736899,1737402651734,-500.0,0.00020071,2]
[349736900,1737402651744,-2776.39,0.00020071,2]
[349736901,1737402651753,-1794.68,0.00020071,2]
[349736902,1737402651762,-500.0,0.00020071,2]
[349736903,1737402651771,-623.00358,0.00020071,2]
[349736904,1737402651780,-1645.42,0.00020071,2]
[349736905,1737402651789,-500.0,0.00020071,2]
[349736906,1737402651798,-583.49073327,0.00020071,2]
[349736907,1737402651811,-500.0,0.00020071,2]
[349736908,1737402651821,-1167.65,0.00020071,2]
[349736909,1737402651830,-500.0,0.00020071,2]
[349736910,1737402651840,-806.39,0.00020071,2]
[349736911,1737402651851,-500.0,0.00020071,2]
[349736912,1737402651860,-862.81,0.00020071,2]
[349736913,1737402651870,-500.0,0.00020071,2]
[349736914,1737402651880,-3946.69,0.00020071,2]
[349736915,1737402651890,-1049.73,0.00020071,2]
[349736916,1737402651899,-2193.59,0.00020071,2]
[349736917,1737402651909,-757.02,0.00020071,2]
[349736918,1737402651918,-505.60848681,0.00020071,2]
[349736919,1737402651927,-859.6,0.00020071,2]
[349736920,1737402651937,-1610.74,0.00020071,2]
[349736921,1737402651947,-1446.28,0.00020071,2]
[349736922,1737402651955,-2739.71,0.00020071,2]
[349736923,1737402651965,-500.0,0.00020071,2]
[349736924,1737402651975,-1764.04,0.00020071,2]
[349736925,1737402651986,-1405.55,0.00020071,2]
[349736926,1737402651997,-500.0,0.00020071,2]
[349736927,1737402652007,-748.86,0.00020071,2]
[349736928,1737402652016,-500.0,0.00020071,2]
[349736929,1737402652025,-500.0,0.00020071,2]
[349736930,1737402652035,-1064.69,0.00020071,2]
[349736931,1737402652043,-2132.45,0.00020071,2]
[349736932,1737402652052,-859.63,0.00020071,2]
[349736933,1737402652061,-500.0,0.00020071,2]
[349736934,1737402652071,-1772.55,0.00020071,2]
[349736935,1737402652081,-1670.66,0.00020071,2]
[349736936,1737402652090,-2696.06,0.00020071,2]
[349736937,1737402652099,-2021.54,0.00020071,2]
[349736938,1737402652109,-3006.85,0.00020071,2]
[349736939,1737402652119,-968.15,0.00020071,2]
[349736940,1737402652128,-3229.93,0.00020071,2]
[349736941,1737402652137,-877.14,0.00020071,2]
[349736942,1737402652147,-500.0,0.00020071,2]
[349736943,1737402652157,-1218.15,0.00020071,2]
[349736944,1737402652167,-500.0,0.00020071,2]
[349736945,1737402652176,-721.51,0.00020071,2]
[349736946,1737402652186,-3000.08,0.00020071,2]
[349736947,1737402652195,-1221.52,0.00020071,2]
[349736948,1737402652205,-312.5,0.00020071,2]
[349736949,1737402652214,-500.0,0.00020071,2]
[349736950,1737402652224,-643.19,0.00020071,2]
[349736951,1737402652233,-500.0,0.00020071,2]
[349736952,1737402652242,-3790.6,0.00020071,2]
[349736953,1737402652251,-615.56,0.00020071,2]
[349736954,1737402652261,-785.77,0.00020071,2]
[349736955,1737402652270,-500.0,0.00020071,2]
[349736956,1737402652280,-500.0,0.00020071,2]
[349736957,1737402652290,-170.91428,0.00020071,2]
[349736958,1737402652299,-500.0,0.00020071,2]
[349736959,1737402652309,-522.12,0.00020071,2]
[349736960,1737402652318,-563.67,0.00020071,2]
[349736961,1737402652327,-170.91428,0.00020071,2]
[349736962,1737402652336,-3626.0,0.00020071,2]
[349736963,1737402652345,-500.0,0.00020071,2]
[349736964,1737402652355,-479.74109875,0.00020071,2]
[349736965,1737402652364,-610.04,0.00020071,2]
[349736966,1737402652374,-2085.34,0.00020071,2]
[349736967,1737402652383,-500.0,0.00020071,2]
[349736968,1737402652395,-150.0,0.0002009,2]
[349736969,1737402652405,-12439.00602618,0.0002009,2]
[349736970,1737402652415,-150.0,0.00020096,2]
[349736971,1737402652424,-17801.33767923,0.00020114,2]
[349736972,1737402652434,-206.78671214,0.00020122,2]
[349736973,1737402652444,-535.28,0.00020134,2]
[349736974,1737402652453,-150.0,0.00020168,2]
[349736975,1737402652463,-150.0,0.00020185,2]
[349736976,1737402652472,-399.77336984,0.00020202,2]
[349736977,1737402652481,-83643.99,0.00020214,2]
[349736978,1737402652490,-153.498858,0.00020214,2]
[349736979,1737402652500,-151.0,0.00020214,2]
[349736980,1737402652510,-151.0,0.00020214,2]
[349736981,1737402652519,-1732.203098,0.00020214,2]
[349736982,1737402652662,-1732.203098,0.00020214,2]
[349736983,1737402652673,-151.0,0.00020214,2]
[349736984,1737402652683,-387.879959,0.00020214,2]
[349736985,1737402652693,-151.0,0.00020214,2]
[349736986,1737402652702,-387.879959,0.00020214,2]
[349736987,1737402652712,-152.701387,0.00020214,2]
[349736988,1737402652721,-151.0,0.00020214,2]
[349736989,1737402652731,-151.0,0.00020214,2]
[349736990,1737402652741,-151.0,0.00020214,2]
[349736991,1737402652751,-301.5,0.00020225,2]
[349736992,1737402652761,-421.85864668,0.00020233,2]
[349736993,1737402652771,-206.78671214,0.00020233,2]
[349736994,1737402652781,-535.28,0.00020271,2]
[349736995,1737402652791,-500.0,0.00020272,2]
[349736996,1737402652801,-500.0,0.00020272,2]
[349736997,1737402652814,-2000.0,0.00020272,2]
[349736998,1737402652823,-200.0,0.00020272,2]
[349736999,1737402652832,-500.0,0.00020272,2]
[349737000,1737402652842,-500.0,0.00020272,2]
[349737001,1737402652853,-500.0,0.00020272,2]
[349737002,1737402652862,-253.99689761,0.00020272,2]
[349737003,1737402652871,-500.0,0.00020272,2]
[349737004,1737402652880,-500.0,0.00020272,2]
[349737005,1737402652893,-508.16921428,0.00020272,2]
[349737006,1737402652903,-500.0,0.00020272,2]
[349737007,1737402652912,-500.0,0.00020272,2]
[349737008,1737402652921,-500.0,0.00020272,2]
[349737009,1737402652930,-500.0,0.00020272,2]
[349737010,1737402652940,-500.0,0.00020272,2]
[349737011,1737402652949,-500.0,0.00020272,2]
[349737012,1737402652958,-500.0,0.00020272,2]
[349737013,1737402652968,-500.0,0.00020272,2]
[349737014,1737402652977,-500.0,0.00020272,2]
[349737015,1737402652987,-528.88950233,0.00020272,2]
[349737016,1737402652996,-500.0,0.00020272,2]
[349737017,1737402653007,-500.0,0.00020272,2]
[349737018,1737402653016,-500.0,0.00020272,2]
[349737019,1737402653026,-500.0,0.00020272,2]
[349737020,1737402653036,-500.0,0.00020272,2]
[349737021,1737402653046,-298.02378106,0.00020272,2]
[349737022,1737402653055,-500.0,0.00020272,2]
[349737023,1737402653066,-500.0,0.00020272,2]
[349737024,1737402653076,-500.0,0.00020272,2]
[349737025,1737402653086,-500.0,0.00020272,2]
[349737026,1737402653096,-500.0,0.00020272,2]
[349737027,1737402653106,-500.0,0.00020272,2]
[349737028,1737402653115,-500.0,0.00020272,2]
[349737029,1737402653125,-500.0,0.00020272,2]
[349737030,1737402653134,-500.0,0.00020272,2]
[349737031,1737402653148,-500.0,0.00020272,2]
[349737032,1737402653157,-500.0,0.00020272,2]
[349737033,1737402653167,-500.0,0.00020272,2]
[349737034,1737402653177,-500.0,0.00020272,2]
[349737035,1737402653186,-500.0,0.00020272,2]
[349737036,1737402653195,-500.0,0.00020272,2]
[349737037,1737402653205,-500.0,0.00020272,2]
[349737038,1737402653215,-1151.29,0.00020272,2]
[349737039,1737402653226,-500.0,0.00020272,2]
[349737040,1737402653235,-500.0,0.00020272,2]
[349737041,1737402653245,-500.0,0.00020272,2]
[349737042,1737402653255,-526.52285198,0.00020272,2]
[349737043,1737402653265,-500.0,0.00020272,2]
[349737044,1737402653275,-500.0,0.00020272,2]
[349737045,1737402653285,-500.0,0.00020272,2]
[349737046,1737402653293,-608.86,0.00020272,2]
[349737047,1737402653303,-500.0,0.00020272,2]
[349737048,1737402653313,-500.0,0.00020272,2]
[349737049,1737402653322,-500.0,0.00020272,2]
[349737050,1737402653331,-500.0,0.00020272,2]
[349737051,1737402653341,-500.0,0.00020272,2]
[349737052,1737402653350,-500.0,0.00020272,2]
[349737053,1737402653359,-500.0,0.00020272,2]
[349737054,1737402653369,-500.0,0.00020272,2]
[349737055,1737402653378,-151.0,0.00020272,2]
[349737056,1737402653387,-703.81,0.00020272,2]
[349737057,1737402653399,-500.0,0.00020272,2]
[349737058,1737402653409,-151.0,0.00020272,2]
[349737059,1737402653419,-500.0,0.00020272,2]
[349737060,1737402653428,-500.0,0.00020272,2]
[349737061,1737402653437,-500.0,0.00020272,2]
[349737062,1737402653447,-531.82,0.00020272,2]
[349737063,1737402653457,-746.25,0.00020272,2]
[349737064,1737402653468,-500.0,0.00020272,2]
[349737065,1737402653483,-500.0,0.00020272,2]
[349737066,1737402653493,-500.0,0.00020272,2]
[349737067,1737402653503,-500.0,0.00020272,2]
[349737068,1737402653512,-820.0,0.00020272,2]
[349737069,1737402653522,-500.0,0.00020272,2]
[349737070,1737402653532,-500.0,0.00020272,2]
[349737071,1737402653541,-716.89,0.00020272,2]
[349737072,1737402653551,-500.0,0.00020272,2]
[349737073,1737402653561,-500.0,0.00020272,2]
[349737074,1737402653571,-151.0,0.00020272,2]
[349737075,1737402653581,-500.0,0.00020272,2]
[349737076,1737402653591,-616.38,0.00020272,2]
[349737077,1737402653600,-500.0,0.00020272,2]
[349737078,1737402653610,-398.09700434,0.00020272,7]
[349737079,1737402653619,-537.76,0.00020272,2]
[349737080,1737402653629,-500.0,0.00020272,2]
[349737081,1737402653639,-793.14,0.00020272,2]
[349737082,1737402653651,-500.0,0.00020272,2]
[349737083,1737402653660,-500.0,0.00020272,2]
[349737084,1737402653670,-500.0,0.00020272,2]
[349737085,1737402653680,-537.52,0.00020272,2]
[349737086,1737402653689,-500.0,0.00020272,2]
[349737087,1737402653699,-500.0,0.00020272,2]
[349737088,1737402653710,-500.0,0.00020272,2]
[349737089,1737402653720,-500.0,0.00020272,2]
[349737090,1737402653730,-500.0,0.00020272,2]
[349737091,1737402653739,-500.0,0.00020272,2]
[349737092,1737402653749,-500.0,0.00020272,2]
[349737093,1737402653759,-500.0,0.00020272,2]
[349737094,1737402653769,-500.0,0.00020272,2]
[349737095,1737402653779,-500.0,0.00020272,2]
[349737096,1737402653788,-500.0,0.00020272,2]
[349737097,1737402653798,-500.0,0.00020272,2]
[349737098,1737402653809,-1139.537215,0.00020272,2]
[349737099,1737402653821,-500.0,0.00020272,2]
[349737100,1737402653831,-500.0,0.00020272,2]
[349737101,1737402653840,-500.0,0.00020272,2]
[349737102,1737402653850,-1139.537215,0.00020272,2]